[Event "Titled Tuesday Blitz April 11 Late 2023"]
[White "Sabuk, Piotr"]
[Black "Papayan, Oleg"]
[WhiteFideId "1137565"]
[BlackFideId "4193911"]
[WhiteElo "2298"]
[BlackElo "2153"]
[Result "1/2-1/2"]
[Round "05"]
[TimeControl "180+2"]
[Date "2023.04.11"]
[WhiteClock "0:00:04"]
[BlackClock "0:00:02"]

1. d4 {[%clk 0:03:00]}  Nf6 {[%clk 0:02:59]} 2. c4 {[%clk 0:03:00]}  e6 {[%clk 0:03:00]} 3. Nf3 {[%clk 0:02:58]}  d5 {[%clk 0:02:59]} 4. g3 {[%clk 0:02:53]}  dxc4 {[%clk 0:02:58]} 5. Bg2 {[%clk 0:02:52]}  c5 {[%clk 0:02:59]} 6. O-O {[%clk 0:02:51]}  Nc6 {[%clk 0:03:00]} 7. dxc5 {[%clk 0:02:52]}  Qxd1 {[%clk 0:03:00]} 8. Rxd1 {[%clk 0:02:52]}  Bxc5 {[%clk 0:03:01]} 9. Nbd2 {[%clk 0:02:52]}  c3 {[%clk 0:03:01]} 10. bxc3 {[%clk 0:02:52]}  O-O {[%clk 0:03:02]} 11. Nb3 {[%clk 0:02:48]}  Be7 {[%clk 0:03:02]} 12. Bb2 {[%clk 0:02:33]}  Bd7 {[%clk 0:03:02]} 13. c4 {[%clk 0:02:32]}  Rfc8 {[%clk 0:03:02]} 14. Bxf6 {[%clk 0:02:30]}  Bxf6 {[%clk 0:03:03]} 15. Rxd7 {[%clk 0:02:30]}  Bxa1 {[%clk 0:03:03]} 16. Nxa1 {[%clk 0:02:30]}  Rd8 {[%clk 0:03:03]} 17. Rd2 {[%clk 0:02:12]}  Ne5 {[%clk 0:02:59]} 18. Nb3 {[%clk 0:02:05]}  Nxc4 {[%clk 0:02:51]} 19. Rc2 {[%clk 0:02:03]}  Rd1+ {[%clk 0:02:43]} 20. Bf1 {[%clk 0:02:02]}  b5 {[%clk 0:02:40]} 21. e3 {[%clk 0:01:59]}  Rb1 {[%clk 0:01:50]} 22. Nfd4 {[%clk 0:01:39]}  a6 {[%clk 0:01:32]} 23. Kg2 {[%clk 0:01:27]}  Rc8 {[%clk 0:01:15]} 24. Bxc4 {[%clk 0:01:26]}  Rxc4 {[%clk 0:01:03]} 25. Rd2 {[%clk 0:01:26]}  g5 {[%clk 0:00:52]} 26. Kf3 {[%clk 0:01:12]}  Rh1 {[%clk 0:00:39]} 27. Ke2 {[%clk 0:01:09]}  Rxh2 {[%clk 0:00:28]} 28. Nf3 {[%clk 0:01:07]}  Rh5 {[%clk 0:00:28]} 29. Rd8+ {[%clk 0:01:07]}  Kg7 {[%clk 0:00:28]} 30. Kd3 {[%clk 0:00:46]}  g4 {[%clk 0:00:27]} 31. Nfd4 {[%clk 0:00:46]}  Rd5 {[%clk 0:00:23]} 32. Rxd5 {[%clk 0:00:30]}  exd5 {[%clk 0:00:23]} 33. Ne2 {[%clk 0:00:31]}  Ra4 {[%clk 0:00:06]} 34. Nc3 {[%clk 0:00:31]}  Ra3 {[%clk 0:00:06]} 35. Kd4 {[%clk 0:00:22]}  b4 {[%clk 0:00:04]} 36. Nxd5 {[%clk 0:00:22]}  Rxa2 {[%clk 0:00:04]} 37. Nxb4 {[%clk 0:00:21]}  Rb2 {[%clk 0:00:02]} 38. Kc3 {[%clk 0:00:20]}  Rxf2 {[%clk 0:00:02]} 39. Nxa6 {[%clk 0:00:20]}  Rf3 {[%clk 0:00:03]} 40. Kd3 {[%clk 0:00:20]}  Rxg3 {[%clk 0:00:03]} 41. Nac5 {[%clk 0:00:20]}  h5 {[%clk 0:00:03]} 42. Nd4 {[%clk 0:00:19]}  Rg1 {[%clk 0:00:02]} 43. Ne4 {[%clk 0:00:18]}  h4 {[%clk 0:00:01]} 44. Nf5+ {[%clk 0:00:18]}  Kg6 {[%clk 0:00:01]} 45. Nxh4+ {[%clk 0:00:19]}  Kh5 {[%clk 0:00:01]} 46. Nf5 {[%clk 0:00:18]}  Ra1 {[%clk 0:00:01]} 47. Ke2 {[%clk 0:00:14]}  Ra2+ {[%clk 0:00:02]} 48. Kf1 {[%clk 0:00:14]}  Rb2 {[%clk 0:00:01]} 49. Kg1 {[%clk 0:00:14]}  Ra2 {[%clk 0:00:02]} 50. Nf2 {[%clk 0:00:12]}  Kg5 {[%clk 0:00:01]} 51. Ng3 {[%clk 0:00:12]}  f5 {[%clk 0:00:02]} 52. Nd3 {[%clk 0:00:11]}  Ra3 {[%clk 0:00:02]} 53. Nf2 {[%clk 0:00:05]}  Rxe3 {[%clk 0:00:03]} 54. Nf1 {[%clk 0:00:06]}  Ra3 {[%clk 0:00:03]} 55. Nd2 {[%clk 0:00:06]}  Ra2 {[%clk 0:00:02]} 56. Nc4 {[%clk 0:00:05]}  Kf4 {[%clk 0:00:02]} 57. Nd3+ {[%clk 0:00:05]}  Kg3 {[%clk 0:00:02]} 58. Ne3 {[%clk 0:00:04]}  Ra1+ {[%clk 0:00:03]} 59. Nf1+ {[%clk 0:00:05]}  Kh4 {[%clk 0:00:03]} 60. Kf2 {[%clk 0:00:03]}  Ra2+ {[%clk 0:00:03]} 61. Ke3 {[%clk 0:00:03]}  Ra3 {[%clk 0:00:03]} 62. Ke2 {[%clk 0:00:03]}  g3 {[%clk 0:00:03]} 63. Ne3 {[%clk 0:00:03]}  Kh3 {[%clk 0:00:03]} 64. Nf4+ {[%clk 0:00:03]}  Kh2 {[%clk 0:00:04]} 65. Kf3 {[%clk 0:00:04]}  Rb3 {[%clk 0:00:04]} 66. Ng2 {[%clk 0:00:04]}  Ra3 {[%clk 0:00:04]} 67. Nf4 {[%clk 0:00:04]}  Rb3 {[%clk 0:00:04]} 68. Ng2 {[%clk 0:00:04]}  Rb1 {[%clk 0:00:04]} 69. Nf4 {[%clk 0:00:03]}  Rb2 {[%clk 0:00:05]} 70. Nxf5 {[%clk 0:00:03]}  Rf2+ {[%clk 0:00:05]} 71. Ke4 {[%clk 0:00:02]}  Rxf4+ {[%clk 0:00:04]} 72. Kxf4 {[%clk 0:00:03]}  g2 {[%clk 0:00:05]} 73. Nd4 {[%clk 0:00:04]}  Kh1 {[%clk 0:00:01]} 74. Nf3 {[%clk 0:00:04]}  g1=Q {[%clk 0:00:02]} 75. Nxg1 {[%clk 0:00:04]} 1/2-1/2


[Site "https://www.chess.com"]

[Event "Titled Tuesday Blitz April 11 Late 2023"]
[White "Filgueira, Hernan"]
[Black "Jumanov, Elbek"]
[WhiteFideId "101770"]
[BlackFideId "14202905"]
[WhiteElo "2363"]
[BlackElo "2055"]
[Result "1-0"]
[Round "05"]
[TimeControl "180+2"]
[Date "2023.04.11"]
[WhiteClock "0:00:14"]
[BlackClock "0:00:01"]

1. c4 {[%clk 0:02:59]}  c5 {[%clk 0:03:00]} 2. g3 {[%clk 0:02:58]}  Nc6 {[%clk 0:03:00]} 3. Bg2 {[%clk 0:02:58]}  g6 {[%clk 0:03:00]} 4. e3 {[%clk 0:02:58]}  Bg7 {[%clk 0:03:00]} 5. Ne2 {[%clk 0:02:58]}  e6 {[%clk 0:02:59]} 6. Nbc3 {[%clk 0:02:57]}  Nge7 {[%clk 0:02:58]} 7. d4 {[%clk 0:02:56]}  cxd4 {[%clk 0:02:58]} 8. exd4 {[%clk 0:02:56]}  d5 {[%clk 0:02:57]} 9. cxd5 {[%clk 0:02:55]}  Nxd5 {[%clk 0:02:52]} 10. Nxd5 {[%clk 0:02:54]}  exd5 {[%clk 0:02:52]} 11. Nf4 {[%clk 0:02:38]}  O-O {[%clk 0:02:43]} 12. O-O {[%clk 0:02:37]}  Nxd4 {[%clk 0:02:39]} 13. Nxd5 {[%clk 0:02:35]}  Re8 {[%clk 0:02:08]} 14. Be3 {[%clk 0:02:27]}  Nf5 {[%clk 0:01:45]} 15. Bf4 {[%clk 0:02:25]}  Bxb2 {[%clk 0:01:45]} 16. Rb1 {[%clk 0:02:22]}  Be5 {[%clk 0:01:45]} 17. Re1 {[%clk 0:02:15]}  Qd6 {[%clk 0:01:29]} 18. Rc1 {[%clk 0:01:48]}  Bd7 {[%clk 0:01:20]} 19. Nc7 {[%clk 0:01:44]}  Bxf4 {[%clk 0:01:01]} 20. Nxe8 {[%clk 0:01:41]}  Bxe8 {[%clk 0:00:49]} 21. gxf4 {[%clk 0:01:35]}  Qxf4 {[%clk 0:00:50]} 22. Qf3 {[%clk 0:00:58]}  Qg5 {[%clk 0:00:47]} 23. Qxb7 {[%clk 0:00:56]}  Rd8 {[%clk 0:00:43]} 24. Qc7 {[%clk 0:00:49]}  Bb5 {[%clk 0:00:27]} 25. f4 {[%clk 0:00:45]}  Qf6 {[%clk 0:00:24]} 26. Qe5 {[%clk 0:00:43]}  Qb6+ {[%clk 0:00:22]} 27. Qc5 {[%clk 0:00:42]}  Qb8 {[%clk 0:00:19]} 28. Rb1 {[%clk 0:00:38]}  Qxf4 {[%clk 0:00:13]} 29. Rxb5 {[%clk 0:00:35]}  Rd2 {[%clk 0:00:10]} 30. Rb4 {[%clk 0:00:25]}  Qg5 {[%clk 0:00:05]} 31. Rb8+ {[%clk 0:00:21]}  Kg7 {[%clk 0:00:06]} 32. Qf8+ {[%clk 0:00:21]}  Kf6 {[%clk 0:00:06]} 33. Qh8+ {[%clk 0:00:17]}  Ng7 {[%clk 0:00:05]} 34. Rf1+ {[%clk 0:00:15]}  Ke6 {[%clk 0:00:02]} 35. Re8+ {[%clk 0:00:14]}  Kd6 {[%clk 0:00:02]} 36. Rd8+ {[%clk 0:00:13]}  Kc5 {[%clk 0:00:01]} 37. Rxd2 {[%clk 0:00:13]}  Qxd2 {[%clk 0:00:01]} 38. Qxg7 {[%clk 0:00:13]}  Qe3+ {[%clk 0:00:01]} 39. Kh1 {[%clk 0:00:14]} 1-0


[Site "https://www.chess.com"]

[Event "Titled Tuesday Blitz April 11 Late 2023"]
[White "Suder, Jakub"]
[Black "Martin Barcelo, Carles"]
[WhiteFideId "1195310"]
[BlackFideId "24561444"]
[WhiteElo "2287"]
[BlackElo "2089"]
[Result "1-0"]
[Round "05"]
[TimeControl "180+2"]
[Date "2023.04.11"]
[WhiteClock "0:01:16"]
[BlackClock "0:00:05"]

1. d4 {[%clk 0:03:00]}  Nf6 {[%clk 0:02:57]} 2. c4 {[%clk 0:02:54]}  e6 {[%clk 0:02:56]} 3. Nc3 {[%clk 0:02:54]}  d5 {[%clk 0:02:44]} 4. cxd5 {[%clk 0:02:52]}  exd5 {[%clk 0:02:42]} 5. Bg5 {[%clk 0:02:52]}  c6 {[%clk 0:02:41]} 6. e3 {[%clk 0:02:53]}  Be7 {[%clk 0:02:38]} 7. Bd3 {[%clk 0:02:52]}  h6 {[%clk 0:02:34]} 8. Bh4 {[%clk 0:02:52]}  O-O {[%clk 0:02:32]} 9. Qc2 {[%clk 0:02:51]}  Nbd7 {[%clk 0:02:32]} 10. Nge2 {[%clk 0:02:51]}  Ne8 {[%clk 0:02:32]} 11. Bg3 {[%clk 0:02:46]}  Bd6 {[%clk 0:02:32]} 12. O-O {[%clk 0:02:46]}  Bxg3 {[%clk 0:02:32]} 13. Nxg3 {[%clk 0:02:47]}  Ndf6 {[%clk 0:02:29]} 14. f3 {[%clk 0:02:46]}  Nd6 {[%clk 0:02:24]} 15. Rad1 {[%clk 0:02:45]}  Re8 {[%clk 0:02:18]} 16. e4 {[%clk 0:02:45]}  Qb6 {[%clk 0:02:15]} 17. Be2 {[%clk 0:02:23]}  Nb5 {[%clk 0:01:59]} 18. Nxb5 {[%clk 0:02:19]}  cxb5 {[%clk 0:01:59]} 19. Kh1 {[%clk 0:02:16]}  dxe4 {[%clk 0:01:33]} 20. fxe4 {[%clk 0:02:17]}  Bg4 {[%clk 0:01:33]} 21. Rxf6 {[%clk 0:02:10]}  Qxf6 {[%clk 0:01:32]} 22. Bxg4 {[%clk 0:02:10]}  Rad8 {[%clk 0:01:27]} 23. e5 {[%clk 0:01:59]}  Qf4 {[%clk 0:01:27]} 24. Qe4 {[%clk 0:01:59]}  Qxe4 {[%clk 0:00:42]} 25. Nxe4 {[%clk 0:01:58]}  f5 {[%clk 0:00:43]} 26. Bh5 {[%clk 0:01:26]}  fxe4 {[%clk 0:00:19]} 27. Bxe8 {[%clk 0:01:25]}  Rxe8 {[%clk 0:00:20]} 28. Kg1 {[%clk 0:01:26]}  Kf7 {[%clk 0:00:17]} 29. Kf2 {[%clk 0:01:26]}  Ke6 {[%clk 0:00:17]} 30. Ke3 {[%clk 0:01:26]}  Kd5 {[%clk 0:00:16]} 31. Rc1 {[%clk 0:01:26]}  b6 {[%clk 0:00:14]} 32. Rc7 {[%clk 0:01:27]}  Rf8 {[%clk 0:00:14]} 33. Rd7+ {[%clk 0:01:24]}  Ke6 {[%clk 0:00:14]} 34. Rxg7 {[%clk 0:01:23]}  Rf1 {[%clk 0:00:13]} 35. Rg6+ {[%clk 0:01:17]}  Ke7 {[%clk 0:00:10]} 36. Kxe4 {[%clk 0:01:16]}  Rb1 {[%clk 0:00:07]} 37. Kd5 {[%clk 0:01:15]}  Rxb2 {[%clk 0:00:08]} 38. Rg7+ {[%clk 0:01:15]}  Kf8 {[%clk 0:00:08]} 39. Rxa7 {[%clk 0:01:15]}  Rxg2 {[%clk 0:00:08]} 40. Kd6 {[%clk 0:01:15]}  Rxh2 {[%clk 0:00:08]} 41. e6 {[%clk 0:01:16]}  Re2 {[%clk 0:00:05]} 42. d5 {[%clk 0:01:16]}  h5 {[%clk 0:00:05]} 43. Rh7 {[%clk 0:01:16]} 1-0


[Site "https://www.chess.com"]

[Event "Titled Tuesday Blitz April 11 Late 2023"]
[White "Kujawski, Adam"]
[Black "Klenburg, Michael"]
[WhiteFideId "1100920"]
[BlackFideId "14102072"]
[WhiteElo "2054"]
[BlackElo "2396"]
[Result "0-1"]
[Round "05"]
[TimeControl "180+2"]
[Date "2023.04.11"]
[WhiteClock "0:00:01"]
[BlackClock "0:01:01"]

1. e4 {[%clk 0:02:56]}  d6 {[%clk 0:02:59]} 2. d4 {[%clk 0:02:55]}  Nf6 {[%clk 0:02:59]} 3. Nc3 {[%clk 0:02:55]}  g6 {[%clk 0:02:59]} 4. h3 {[%clk 0:02:55]}  Bg7 {[%clk 0:02:58]} 5. Nf3 {[%clk 0:02:55]}  O-O {[%clk 0:02:58]} 6. Be3 {[%clk 0:02:55]}  a6 {[%clk 0:02:57]} 7. a4 {[%clk 0:02:54]}  e6 {[%clk 0:02:57]} 8. g3 {[%clk 0:02:07]}  Nc6 {[%clk 0:02:55]} 9. Bg2 {[%clk 0:02:06]}  Nb4 {[%clk 0:02:51]} 10. O-O {[%clk 0:01:51]}  Re8 {[%clk 0:02:43]} 11. Qd2 {[%clk 0:01:45]}  a5 {[%clk 0:02:42]} 12. Rac1 {[%clk 0:01:39]}  b6 {[%clk 0:02:37]} 13. Bh6 {[%clk 0:01:38]}  Bb7 {[%clk 0:02:36]} 14. Bxg7 {[%clk 0:01:38]}  Kxg7 {[%clk 0:02:36]} 15. Qf4 {[%clk 0:01:23]}  h6 {[%clk 0:02:21]} 16. h4 {[%clk 0:01:15]}  Qe7 {[%clk 0:02:20]} 17. g4 {[%clk 0:00:53]}  e5 {[%clk 0:02:18]} 18. dxe5 {[%clk 0:00:49]}  dxe5 {[%clk 0:02:18]} 19. Qg3 {[%clk 0:00:46]}  Nxe4 {[%clk 0:02:17]} 20. Nxe4 {[%clk 0:00:45]}  Bxe4 {[%clk 0:02:17]} 21. Rfe1 {[%clk 0:00:40]}  Bxf3 {[%clk 0:02:16]} 22. Bxf3 {[%clk 0:00:38]}  Rad8 {[%clk 0:02:15]} 23. g5 {[%clk 0:00:33]}  hxg5 {[%clk 0:02:12]} 24. hxg5 {[%clk 0:00:33]}  Qc5 {[%clk 0:02:11]} 25. Kg2 {[%clk 0:00:14]}  Rd2 {[%clk 0:01:43]} 26. Rh1 {[%clk 0:00:13]}  e4 {[%clk 0:01:26]} 27. Qh4 {[%clk 0:00:05]}  exf3+ {[%clk 0:01:24]} 28. Kg1 {[%clk 0:00:05]}  Kf8 {[%clk 0:01:16]} 29. Qh8+ {[%clk 0:00:04]}  Ke7 {[%clk 0:01:16]} 30. Qf6+ {[%clk 0:00:02]}  Kd7 {[%clk 0:01:14]} 31. Qxf7+ {[%clk 0:00:02]}  Re7 {[%clk 0:01:13]} 32. Qxf3 {[%clk 0:00:02]}  Qxg5+ {[%clk 0:01:09]} 33. Kf1 {[%clk 0:00:01]}  Qd5 {[%clk 0:01:01]} 0-1


[Site "https://www.chess.com"]

[Event "Titled Tuesday Blitz April 11 Late 2023"]
[White "Kovalevsky, Stanislav"]
[Black "Cori T., Deysi"]
[WhiteFideId "13508598"]
[BlackFideId "3801934"]
[WhiteElo "2174"]
[BlackElo "2292"]
[Result "0-1"]
[Round "05"]
[TimeControl "180+2"]
[Date "2023.04.11"]
[WhiteClock "0:00:59"]
[BlackClock "0:00:32"]

1. c4 {[%clk 0:03:00]}  f5 {[%clk 0:02:57]} 2. Nc3 {[%clk 0:03:00]}  Nf6 {[%clk 0:02:57]} 3. g3 {[%clk 0:03:01]}  g6 {[%clk 0:02:57]} 4. Bg2 {[%clk 0:03:02]}  Bg7 {[%clk 0:02:57]} 5. b4 {[%clk 0:03:02]}  d6 {[%clk 0:02:57]} 6. Bb2 {[%clk 0:03:03]}  O-O {[%clk 0:02:57]} 7. e3 {[%clk 0:03:02]}  e5 {[%clk 0:02:58]} 8. Nge2 {[%clk 0:03:02]}  Nc6 {[%clk 0:02:56]} 9. b5 {[%clk 0:03:02]}  Ne7 {[%clk 0:02:56]} 10. d4 {[%clk 0:03:02]}  Kh8 {[%clk 0:02:55]} 11. a4 {[%clk 0:02:44]}  Be6 {[%clk 0:02:47]} 12. Bxb7 {[%clk 0:02:33]}  Bxc4 {[%clk 0:02:46]} 13. Bxa8 {[%clk 0:02:28]}  Qxa8 {[%clk 0:02:47]} 14. O-O {[%clk 0:02:26]}  Qf3 {[%clk 0:02:23]} 15. dxe5 {[%clk 0:02:18]}  dxe5 {[%clk 0:02:01]} 16. Ba3 {[%clk 0:02:18]}  Nfd5 {[%clk 0:01:52]} 17. Qc2 {[%clk 0:02:01]}  Bh6 {[%clk 0:01:37]} 18. Nxd5 {[%clk 0:01:54]}  Bxd5 {[%clk 0:01:36]} 19. e4 {[%clk 0:01:38]}  Bxe4 {[%clk 0:01:17]} 20. Qxe4 {[%clk 0:01:37]}  fxe4 {[%clk 0:01:09]} 21. Bxe7 {[%clk 0:01:37]}  Rf7 {[%clk 0:00:57]} 22. Bc5 {[%clk 0:01:35]}  Qxe2 {[%clk 0:00:56]} 23. Bxa7 {[%clk 0:01:31]}  e3 {[%clk 0:00:56]} 24. a5 {[%clk 0:01:22]}  exf2+ {[%clk 0:00:55]} 25. Bxf2 {[%clk 0:01:17]}  Rxf2 {[%clk 0:00:55]} 26. Rxf2 {[%clk 0:01:16]}  Be3 {[%clk 0:00:55]} 27. Rf1 {[%clk 0:01:16]}  Qxb5 {[%clk 0:00:55]} 28. Kg2 {[%clk 0:01:16]}  Bxf2 {[%clk 0:00:54]} 29. Rxf2 {[%clk 0:01:17]}  Qxa5 {[%clk 0:00:54]} 30. Kh3 {[%clk 0:01:18]}  Qd5 {[%clk 0:00:52]} 31. g4 {[%clk 0:01:13]}  g5 {[%clk 0:00:50]} 32. Kg3 {[%clk 0:01:12]}  Qd3+ {[%clk 0:00:48]} 33. Kg2 {[%clk 0:01:12]}  c5 {[%clk 0:00:47]} 34. h3 {[%clk 0:01:08]}  c4 {[%clk 0:00:47]} 35. Kh1 {[%clk 0:01:06]}  c3 {[%clk 0:00:45]} 36. h4 {[%clk 0:01:05]}  c2 {[%clk 0:00:45]} 37. h5 {[%clk 0:01:02]}  c1=Q+ {[%clk 0:00:44]} 38. Kh2 {[%clk 0:01:03]}  Qe4 {[%clk 0:00:33]} 39. h6 {[%clk 0:00:58]}  Qch1+ {[%clk 0:00:32]} 40. Kg3 {[%clk 0:00:59]}  Qh4# {[%clk 0:00:32]} 0-1


[Site "https://www.chess.com"]

[Event "Titled Tuesday Blitz April 11 Late 2023"]
[White "Rosen, Eric"]
[Black "Gatterer, Florian"]
[WhiteFideId "2032562"]
[BlackFideId "811688"]
[WhiteElo "2331"]
[BlackElo "2221"]
[Result "1-0"]
[Round "05"]
[TimeControl "180+2"]
[Date "2023.04.11"]
[WhiteClock "0:00:34"]
[BlackClock "0:00:03"]

1. e4 {[%clk 0:03:00]}  c5 {[%clk 0:02:58]} 2. Nf3 {[%clk 0:03:01]}  e6 {[%clk 0:02:58]} 3. c4 {[%clk 0:03:00]}  Nc6 {[%clk 0:02:55]} 4. Be2 {[%clk 0:03:00]}  Nf6 {[%clk 0:02:53]} 5. Nc3 {[%clk 0:02:58]}  e5 {[%clk 0:02:50]} 6. a3 {[%clk 0:02:51]}  Be7 {[%clk 0:02:49]} 7. b4 {[%clk 0:02:47]}  d6 {[%clk 0:02:45]} 8. Rb1 {[%clk 0:02:42]}  O-O {[%clk 0:02:38]} 9. O-O {[%clk 0:02:42]}  b6 {[%clk 0:02:36]} 10. d3 {[%clk 0:02:36]}  h6 {[%clk 0:02:35]} 11. Ne1 {[%clk 0:02:33]}  Nd4 {[%clk 0:02:23]} 12. f4 {[%clk 0:02:33]}  Nh7 {[%clk 0:02:14]} 13. Nd5 {[%clk 0:02:23]}  exf4 {[%clk 0:01:40]} 14. Bxf4 {[%clk 0:02:19]}  Bg5 {[%clk 0:01:32]} 15. Bg3 {[%clk 0:02:13]}  Be6 {[%clk 0:01:26]} 16. Bg4 {[%clk 0:01:55]}  Bxd5 {[%clk 0:01:05]} 17. cxd5 {[%clk 0:01:55]}  Nf6 {[%clk 0:01:00]} 18. Bh3 {[%clk 0:01:51]}  Qe7 {[%clk 0:00:49]} 19. Nf3 {[%clk 0:01:51]}  Nxf3+ {[%clk 0:00:46]} 20. Qxf3 {[%clk 0:01:51]}  Nd7 {[%clk 0:00:45]} 21. bxc5 {[%clk 0:01:38]}  Nxc5 {[%clk 0:00:37]} 22. Kh1 {[%clk 0:01:31]}  Rae8 {[%clk 0:00:35]} 23. Rb2 {[%clk 0:01:25]}  Bf6 {[%clk 0:00:35]} 24. Rc2 {[%clk 0:01:19]}  Be5 {[%clk 0:00:33]} 25. Be1 {[%clk 0:01:14]}  Nb3 {[%clk 0:00:32]} 26. Rc4 {[%clk 0:01:05]}  Nd4 {[%clk 0:00:31]} 27. Qd1 {[%clk 0:01:05]}  Qg5 {[%clk 0:00:19]} 28. a4 {[%clk 0:00:59]}  f5 {[%clk 0:00:18]} 29. Bc3 {[%clk 0:00:55]}  fxe4 {[%clk 0:00:07]} 30. Bxd4 {[%clk 0:00:37]}  Rxf1+ {[%clk 0:00:06]} 31. Qxf1 {[%clk 0:00:38]}  Rf8 {[%clk 0:00:05]} 32. Be6+ {[%clk 0:00:39]}  Kh7 {[%clk 0:00:05]} 33. Qxf8 {[%clk 0:00:34]}  Qc1+ {[%clk 0:00:03]} 34. Rxc1 {[%clk 0:00:34]} 1-0


[Site "https://www.chess.com"]

[Event "Titled Tuesday Blitz April 11 Late 2023"]
[White "Bas Mas, Jose Joaquin"]
[Black "Belov, Alexei"]
[WhiteFideId "22219064"]
[BlackFideId "4128206"]
[WhiteElo "2233"]
[BlackElo "2421"]
[Result "1-0"]
[Round "05"]
[TimeControl "180+2"]
[Date "2023.04.11"]
[WhiteClock "0:00:26"]
[BlackClock "0:00:49"]

1. e4 {[%clk 0:03:00]}  e6 {[%clk 0:02:59]} 2. d4 {[%clk 0:03:00]}  d5 {[%clk 0:02:59]} 3. e5 {[%clk 0:03:01]}  c5 {[%clk 0:02:59]} 4. c3 {[%clk 0:03:01]}  Qb6 {[%clk 0:02:59]} 5. Nf3 {[%clk 0:03:01]}  Nc6 {[%clk 0:02:59]} 6. Bd3 {[%clk 0:03:00]}  cxd4 {[%clk 0:02:58]} 7. O-O {[%clk 0:03:00]}  Bd7 {[%clk 0:02:58]} 8. Re1 {[%clk 0:02:58]}  Rc8 {[%clk 0:02:58]} 9. a3 {[%clk 0:02:56]}  Nge7 {[%clk 0:02:52]} 10. h4 {[%clk 0:02:53]}  h6 {[%clk 0:02:45]} 11. b4 {[%clk 0:02:51]}  a6 {[%clk 0:02:35]} 12. c4 {[%clk 0:02:50]}  dxc4 {[%clk 0:02:33]} 13. Nbd2 {[%clk 0:02:51]}  cxd3 {[%clk 0:02:32]} 14. Nc4 {[%clk 0:02:50]}  Qa7 {[%clk 0:02:24]} 15. Nd6+ {[%clk 0:02:49]}  Kd8 {[%clk 0:02:24]} 16. Nxf7+ {[%clk 0:02:49]}  Kc7 {[%clk 0:02:25]} 17. Nxh8 {[%clk 0:02:49]}  Be8 {[%clk 0:02:25]} 18. Qxd3 {[%clk 0:02:33]}  Kb8 {[%clk 0:02:21]} 19. Bb2 {[%clk 0:02:25]}  Rd8 {[%clk 0:02:20]} 20. Re4 {[%clk 0:01:47]}  g6 {[%clk 0:01:35]} 21. Rf4 {[%clk 0:01:42]}  Bg7 {[%clk 0:01:28]} 22. Nf7 {[%clk 0:01:41]}  Nxe5 {[%clk 0:01:26]} 23. N7xe5 {[%clk 0:01:35]}  Bxe5 {[%clk 0:01:26]} 24. Re4 {[%clk 0:01:33]}  Bg7 {[%clk 0:01:22]} 25. Rxe6 {[%clk 0:01:27]}  Nf5 {[%clk 0:01:17]} 26. g4 {[%clk 0:01:22]}  Bb5 {[%clk 0:01:14]} 27. Qe4 {[%clk 0:01:22]}  Nd6 {[%clk 0:01:12]} 28. Qxg6 {[%clk 0:01:17]}  Bf8 {[%clk 0:01:09]} 29. Bxd4 {[%clk 0:01:16]}  b6 {[%clk 0:01:09]} 30. Be5 {[%clk 0:01:15]}  Ka8 {[%clk 0:01:03]} 31. Rd1 {[%clk 0:01:04]}  Qb7 {[%clk 0:01:01]} 32. Rexd6 {[%clk 0:00:51]}  Bxd6 {[%clk 0:00:59]} 33. Rxd6 {[%clk 0:00:49]}  Rc8 {[%clk 0:00:53]} 34. Rxb6 {[%clk 0:00:27]}  Qd7 {[%clk 0:00:50]} 35. Rxa6+ {[%clk 0:00:26]}  Bxa6 {[%clk 0:00:49]} 36. Qxa6+ {[%clk 0:00:26]}  Qa7 {[%clk 0:00:49]} 37. Qxc8+ {[%clk 0:00:26]} 1-0


[Site "https://www.chess.com"]

[Event "Titled Tuesday Blitz April 11 Late 2023"]
[White "Dzierzak, Radoslaw"]
[Black "Ibadov, Dashgyn"]
[WhiteFideId "1161407"]
[BlackFideId "24107514"]
[WhiteElo "2166"]
[BlackElo "2208"]
[Result "0-1"]
[Round "05"]
[TimeControl "180+2"]
[Date "2023.04.11"]
[WhiteClock "0:00:02"]
[BlackClock "0:00:05"]

1. e4 {[%clk 0:03:00]}  e6 {[%clk 0:02:57]} 2. Nf3 {[%clk 0:03:00]}  d5 {[%clk 0:02:57]} 3. Nc3 {[%clk 0:02:59]}  Nf6 {[%clk 0:02:56]} 4. e5 {[%clk 0:02:57]}  Nfd7 {[%clk 0:02:56]} 5. Ne2 {[%clk 0:02:57]}  c5 {[%clk 0:02:54]} 6. c3 {[%clk 0:02:57]}  Nc6 {[%clk 0:02:53]} 7. d4 {[%clk 0:02:56]}  Be7 {[%clk 0:02:48]} 8. Nf4 {[%clk 0:02:53]}  cxd4 {[%clk 0:02:38]} 9. cxd4 {[%clk 0:02:53]}  g5 {[%clk 0:02:39]} 10. Nh5 {[%clk 0:02:22]}  g4 {[%clk 0:02:39]} 11. Ng7+ {[%clk 0:02:16]}  Kf8 {[%clk 0:02:38]} 12. Bh6 {[%clk 0:02:17]}  Kg8 {[%clk 0:02:39]} 13. Ng1 {[%clk 0:02:10]}  Bb4+ {[%clk 0:02:24]} 14. Ke2 {[%clk 0:02:05]}  Bf8 {[%clk 0:02:18]} 15. h3 {[%clk 0:01:47]}  Bxg7 {[%clk 0:02:14]} 16. hxg4 {[%clk 0:01:37]}  Bxh6 {[%clk 0:02:08]} 17. Rxh6 {[%clk 0:01:38]}  Qg5 {[%clk 0:02:07]} 18. Rh3 {[%clk 0:01:28]}  b6 {[%clk 0:01:50]} 19. Nf3 {[%clk 0:01:08]}  Qf4 {[%clk 0:01:49]} 20. Ke1 {[%clk 0:01:00]}  Qe4+ {[%clk 0:01:44]} 21. Be2 {[%clk 0:01:00]}  Ba6 {[%clk 0:01:43]} 22. Rc1 {[%clk 0:00:43]}  Qxe2+ {[%clk 0:01:37]} 23. Qxe2 {[%clk 0:00:44]}  Bxe2 {[%clk 0:01:37]} 24. Kxe2 {[%clk 0:00:45]}  Rc8 {[%clk 0:01:33]} 25. Kd2 {[%clk 0:00:37]}  Kg7 {[%clk 0:01:32]} 26. a3 {[%clk 0:00:35]}  Na5 {[%clk 0:01:28]} 27. Rc3 {[%clk 0:00:29]}  Rxc3 {[%clk 0:01:24]} 28. bxc3 {[%clk 0:00:29]}  Nc4+ {[%clk 0:01:19]} 29. Kd3 {[%clk 0:00:27]}  Nxa3 {[%clk 0:01:19]} 30. Nd2 {[%clk 0:00:27]}  Rc8 {[%clk 0:01:15]} 31. f4 {[%clk 0:00:25]}  Nc4 {[%clk 0:01:04]} 32. Nf3 {[%clk 0:00:18]}  a5 {[%clk 0:00:55]} 33. f5 {[%clk 0:00:18]}  a4 {[%clk 0:00:36]} 34. f6+ {[%clk 0:00:16]}  Kg8 {[%clk 0:00:29]} 35. Rh1 {[%clk 0:00:09]}  a3 {[%clk 0:00:29]} 36. Ra1 {[%clk 0:00:05]}  h6 {[%clk 0:00:26]} 37. g5 {[%clk 0:00:04]}  Kh7 {[%clk 0:00:23]} 38. g4 {[%clk 0:00:03]}  Rg8 {[%clk 0:00:18]} 39. Rh1 {[%clk 0:00:03]}  Rg6 {[%clk 0:00:18]} 40. gxh6 {[%clk 0:00:03]}  b5 {[%clk 0:00:12]} 41. g5 {[%clk 0:00:02]}  Ndb6 {[%clk 0:00:09]} 42. Kc2 {[%clk 0:00:03]}  Rg8 {[%clk 0:00:07]} 43. Kb3 {[%clk 0:00:02]}  Kg6 {[%clk 0:00:06]} 44. Rg1 {[%clk 0:00:02]}  Ra8 {[%clk 0:00:05]} 45. Nh4+ {[%clk 0:00:02]}  Kh7 {[%clk 0:00:04]} 46. g6+ {[%clk 0:00:03]}  fxg6 {[%clk 0:00:05]} 47. Rxg6 {[%clk 0:00:03]}  a2 {[%clk 0:00:06]} 48. Rg7+ {[%clk 0:00:04]}  Kxh6 {[%clk 0:00:06]} 49. Rg6+ {[%clk 0:00:02]}  Kh5 {[%clk 0:00:06]} 50. Rg1 {[%clk 0:00:02]}  Kxh4 {[%clk 0:00:05]} 0-1


[Site "https://www.chess.com"]